bitfinex/quotes_ETHUSD_20250114
["timestamp","ask_amount","ask_price","bid_price","bid_amount"]
[1736841636145,3.1494,3175.2,3175.1,0.3153]
[1736841636650,3.1494,3175.2,3174.9,0.3153]
[1736841637753,3.1494,3175.2,3175.1,0.3153]
[1736841638036,3.1494,3175.2,3175.1,0.47867946]
[1736841638837,3.1494,3175.2,3175.1,0.16337946]
[1736841639253,3.1494,3175.2,3174.8,3.1034]
[1736841639456,3.1494,3175.2,3175.1,0.16337946]
[1736841639661,3.1494,3175.2,3174.8,3.1034]
[1736841640286,3.05928398,3175.4,3174.9,0.1635544]
[1736841640287,3.1496,3175.0,3174.9,0.1635544]
[1736841640633,3.1496,3175.0,3174.4,1.1034]
[1736841641033,3.1496,3175.0,3174.5,0.47933036]
[1736841641537,3.14979,3174.9,3174.5,0.47933036]
[1736841642174,3.9237,3174.8,3174.5,0.16383036]
[1736841642477,3.14992,3174.7,3174.5,0.16383036]
[1736841642800,3.14992,3174.7,3174.1,0.7879]
[1736841642801,3.14992,3174.7,3174.6,0.16433199]
[1736841643278,3.14992,3174.7,3174.1,0.7879]
[1736841643636,3.14992,3174.7,3174.2,0.164608]
[1736841643837,3.14976,3174.9,3174.2,0.164608]
[1736841644040,0.7739,3175.0,3174.2,0.164608]
[1736841644253,3.14981,3174.8,3174.2,0.164608]
[1736841645175,3.14981,3174.8,3174.3,0.3155]
[1736841645386,3.14981,3174.8,3174.5,0.3155]
[1736841645787,3.14981,3174.8,3174.6,0.16436371]
[1736841646822,0.7739,3175.2,3174.6,0.16436371]
[1736841647023,3.1499,3174.7,3174.6,0.16436371]
[1736841647186,3.1499,3174.7,3174.4,0.7879]
[1736841647391,3.1499,3174.7,3174.6,0.16428971]
[1736841647629,3.1499,3174.7,3174.5,0.16435871]
[1736841647928,3.1499,3174.7,3174.6,0.16428971]
[1736841648083,3.1499,3174.7,3173.4,2.7879]
[1736841648084,0.7739,3174.5,3173.4,2.7879]
[1736841648413,3.1508,3173.8,3173.4,2.7879]
[1736841648586,3.79381661,3173.6,3173.1,0.005]
[1736841648782,6.94480661,3173.6,3173.1,0.005]
[1736841649833,3.15082,3173.8,3173.3,0.7879]
[1736841650125,3.1903574,3173.7,3173.3,0.7879]
[1736841650542,3.15099,3173.6,3173.1,0.7929]
[1736841650929,3.15081,3173.8,3173.1,0.7929]
[1736841651099,3.19019832,3173.8,3173.1,0.7929]
[1736841652044,3.15081,3173.8,3173.1,0.7929]
[1736841653634,3.92453,3174.0,3173.1,0.7929]
[1736841654019,3.15063,3174.0,3173.1,0.7929]
[1736841654201,3.19001511,3174.0,3173.1,0.7929]
[1736841654709,3.19001511,3174.0,3173.1,3.94438]
[1736841655552,3.19001487,3174.0,3173.1,3.94438]
[1736841655846,3.15063,3174.0,3173.6,0.16019608]
[1736841656241,3.15071,3173.9,3173.6,0.16019608]
[1736841656441,3.15059,3174.0,3173.6,0.16019608]
[1736841656747,3.19013487,3173.9,3173.6,0.16019608]
[1736841656916,3.15075,3173.9,3173.6,0.16019608]
[1736841657339,3.15075,3173.9,3173.1,0.7929]
[1736841657545,3.15075,3173.9,3173.6,0.16019608]
[1736841657925,3.56933653,3174.1,3173.6,0.94809608]
[1736841658127,3.92435,3174.2,3173.6,0.94809608]
[1736841658330,3.9241,3174.4,3173.6,0.94809608]
[1736841658654,3.1503,3174.3,3173.6,0.94809608]
[1736841658838,3.15048,3174.2,3173.6,0.94809608]
[1736841659055,3.9241,3174.4,3173.7,0.3155]
[1736841659238,3.1504,3174.2,3173.7,0.3155]
[1736841659538,3.1504,3174.2,3173.9,0.3155]
[1736841659754,3.1504,3174.2,3174.0,0.47541997]
[1736841660461,4.09850066,3174.6,3174.0,0.47541997]
[1736841660462,0.759,3174.6,3174.1,1.0965]
[1736841660752,3.14905,3175.6,3174.2,0.15972208]
[1736841660753,3.15027,3174.4,3174.2,0.15972208]
[1736841662321,3.759,3175.0,3174.2,0.15972208]
[1736841662544,3.1497,3174.9,3174.3,0.3155]
[1736841662747,0.759,3175.0,3174.4,0.15958407]
[1736841662966,3.14992,3174.7,3174.4,0.47508407]
[1736841663110,3.14973,3174.9,3174.4,0.47508407]
[1736841663563,3.14973,3174.9,3174.6,0.3155]
[1736841663729,3.14973,3174.9,3174.7,0.15920261]
[1736841663916,3.14973,3174.9,3174.5,0.781]
[1736841664116,3.14973,3174.9,3174.6,0.15895434]
[1736841664720,0.03937167,3175.0,3174.6,0.15895434]
[1736841665121,3.1499,3174.7,3174.6,0.15895434]
[1736841665338,3.1499,3174.7,3174.3,0.781]
[1736841665542,3.1499,3174.7,3174.4,0.15900775]
[1736841665742,3.18912497,3174.9,3174.4,0.15900775]
[1736841667581,3.14975,3174.9,3174.4,0.15900775]
[1736841667756,3.14975,3174.9,3174.4,0.47450775]
[1736841668282,3.90853,3175.1,3174.4,0.47450775]
[1736841668482,0.03937251,3175.0,3174.4,0.47450775]
[1736841668781,3.0,3175.3,3174.4,0.47450775]
[1736841669114,3.14957,3175.1,3174.4,0.47450775]
[1736841669249,3.14961,3175.0,3174.4,0.47450775]
[1736841669837,3.14961,3175.0,3174.5,0.781]
[1736841670183,3.14961,3175.0,3174.6,0.15883805]
[1736841670583,3.14961,3175.0,3174.5,0.781]
[1736841670786,3.15001,3174.6,3174.2,0.3155]
[1736841671943,3.14981,3174.8,3174.3,1.0965]
[1736841673790,3.14963,3175.0,3174.3,1.0965]
[1736841673998,3.14963,3175.0,3174.4,1.0965]
[1736841676989,1.12826348,3175.3,3174.5,2.0]
[1736841677185,0.80563901,3175.2,3174.5,2.0]
[1736841677392,3.14962,3175.0,3174.5,2.0]
[1736841678000,3.95509901,3175.2,3174.5,2.0]
[1736841678182,3.95509901,3175.2,3174.6,0.8011]
[1736841678494,0.314905,3175.5,3174.6,0.8011]
[1736841678703,3.1493,3175.4,3174.6,0.8011]
[1736841679398,3.14884,3175.8,3174.6,0.8011]
[1736841679399,0.7889,3176.1,3175.1,0.7683]
[1736841679599,3.14857,3176.1,3175.5,0.7683]
[1736841679805,0.314857,3176.1,3175.5,0.7683]
[1736841679960,0.03935957,3176.0,3175.5,0.7683]
[1736841680160,0.7889,3175.9,3175.2,1.0838]
[1736841680360,0.03936261,3175.8,3175.2,1.0838]
[1736841681818,3.18824261,3175.8,3175.2,1.0838]
[1736841682766,3.14892,3175.7,3175.3,0.14760137]
[1736841682966,3.14892,3175.7,3175.2,1.0838]
[1736841683309,3.14892,3175.7,3175.3,0.14760137]
[1736841683667,3.14892,3175.7,3175.2,1.0838]
[1736841683978,3.14892,3175.7,3175.3,0.14760137]
[1736841684309,3.14892,3175.7,3175.2,0.7683]
[1736841684605,3.14892,3175.7,3175.3,0.14760137]
[1736841684790,3.14901,3175.6,3175.2,0.7683]
[1736841684963,3.14901,3175.6,3175.4,0.14728936]
[1736841685166,3.14901,3175.6,3175.2,0.7683]
[1736841685709,3.14901,3175.6,3175.3,0.14735832]
[1736841686015,3.18821261,3175.8,3175.2,0.7683]
[1736841686309,3.18821261,3175.8,3175.4,0.14733691]
[1736841686478,3.18821261,3175.8,3175.3,0.14740587]
[1736841686680,3.18821261,3175.8,3175.2,0.7683]
[1736841686883,3.18821261,3175.8,3175.4,0.14732634]
[1736841687096,3.18821261,3175.8,3175.3,0.1473953]
[1736841687292,3.18821261,3175.8,3175.5,0.14725739]
[1736841687482,3.18821261,3175.8,3175.4,0.14732634]
[1736841687667,3.18821261,3175.8,3175.2,0.7683]
[1736841687865,3.18821261,3175.8,3175.5,0.14717814]
[1736841688068,3.88791553,3175.8,3175.2,0.7683]
[1736841688297,3.14885,3175.8,3175.6,0.14667062]
[1736841688470,3.14885,3175.8,3175.2,0.7683]
[1736841688668,3.14885,3175.8,3175.7,0.14659111]
[1736841688912,3.18821264,3175.8,3175.2,0.7683]
[1736841689301,3.14885,3175.8,3175.3,0.14686693]
[1736841689504,3.18821265,3175.8,3175.3,0.14686693]
[1736841689685,3.18821265,3175.8,3175.2,0.7683]
[1736841690012,3.18821265,3175.8,3175.3,0.14686165]
[1736841690200,3.88791558,3175.8,3175.3,0.14686165]
[1736841690364,3.88791558,3175.8,3175.2,0.7683]
[1736841690699,3.88791558,3175.8,3175.3,0.14685636]
[1736841690700,3.18821265,3175.8,3175.3,0.14685636]
[1736841691099,3.18821265,3175.8,3175.2,0.7683]
[1736841691290,3.18821265,3175.8,3175.4,0.14675571]
[1736841691653,3.14885,3175.8,3175.5,0.14668675]
[1736841691969,3.14885,3175.8,3175.2,1.0838]
[1736841692209,0.7889,3175.9,3175.3,0.14682467]
[1736841692417,3.01991661,3176.0,3175.3,0.14682467]
[1736841692418,6.16857661,3176.0,3175.4,2.0]
[1736841692620,6.16857661,3176.0,3175.4,2.14679797]
[1736841692621,3.91922341,3176.0,3175.4,2.14679797]
[1736841692773,6.9771,3176.2,3175.5,0.8093]
[1736841692972,6.9771,3176.2,3175.6,0.14664421]
[1736841693672,3.14855,3176.1,3175.6,0.14664421]
[1736841694112,3.14862,3176.0,3175.6,0.14664421]
[1736841701021,3.97706,3176.2,3175.6,0.14664421]
[1736841701206,3.14846,3176.2,3175.6,0.14664421]
[1736841701408,3.14846,3176.2,3175.7,0.8093]
[1736841701618,3.14846,3176.2,3175.7,0.95305411]
[1736841702245,3.14846,3176.2,3175.7,1.26855411]
[1736841702425,3.14827,3176.4,3175.8,2.0]
[1736841702610,3.14827,3176.4,3175.8,2.14368517]
[1736841702797,3.14807,3176.6,3175.9,1.1248]
[1736841702997,3.14807,3176.6,3176.0,0.9528473]
[1736841703339,0.8286,3177.0,3176.3,0.8093]
[1736841703504,3.97629,3177.0,3176.3,1.1248]
[1736841703838,0.8286,3177.0,3176.5,0.3155]
[1736841704038,3.14774,3176.9,3176.5,0.3155]
[1736841704343,3.14752,3177.1,3176.6,0.14309153]
[1736841704636,0.8286,3177.3,3176.7,0.791]
[1736841704834,3.14736,3177.3,3176.7,0.93394869]
[1736841705395,3.14715,3177.5,3176.7,0.93394869]
[1736841705592,3.14715,3177.5,3176.8,0.3155]
[1736841705796,3.14715,3177.5,3176.9,0.14261025]
[1736841706104,3.14715,3177.5,3176.9,0.45811025]
[1736841706814,3.14709,3177.6,3176.9,0.45811025]
[1736841707020,3.14713,3177.5,3176.9,0.45811025]
[1736841707231,6.89987,3177.8,3176.9,0.45811025]
[1736841707438,3.14724,3177.4,3176.9,0.45811025]
[1736841708797,3.14724,3177.4,3176.9,0.14261025]
[1736841709221,3.1471,3177.6,3177.0,2.0]
[1736841709529,3.14723,3177.4,3177.1,0.791]
[1736841709836,3.14723,3177.4,3177.2,0.14221355]
[1736841711625,6.89986,3177.8,3177.2,0.14221355]
[1736841711825,3.14705,3177.6,3177.2,0.14221355]
[1736841712797,3.14714,3177.5,3177.2,0.14221355]
[1736841713241,3.89991,3177.8,3177.2,0.14221355]
[1736841713535,3.14691,3177.8,3177.2,0.14221355]
[1736841714341,3.14668,3178.0,3177.5,0.791]
[1736841714701,3.14668,3178.0,3177.6,0.14124115]
[1736841714900,3.14693,3177.7,3177.6,0.14124115]
[1736841715100,3.14693,3177.7,3177.4,2.0]
[1736841715402,3.14693,3177.7,3177.5,0.14131001]
[1736841716333,3.14702,3177.6,3177.5,0.14131001]
[1736841716734,3.14718,3177.5,3177.1,0.791]
[1736841718917,3.14718,3177.5,3177.2,0.3155]
[1736841719940,3.14701,3177.7,3177.2,0.3155]
[1736841720540,3.14678,3177.9,3177.3,0.3155]
[1736841720738,3.14678,3177.9,3177.0,5.14761]
[1736841720739,3.14657,3178.1,3177.4,2.3155]
[1736841720899,3.14657,3178.1,3177.5,1.1065]
[1736841722216,0.753,3178.2,3177.5,1.1065]
[1736841722421,3.1467,3178.0,3177.5,1.1065]
[1736841724244,0.753,3178.2,3177.5,1.1065]
[1736841724434,3.14656,3178.1,3177.7,0.3155]
[1736841725141,3.1464,3178.3,3177.7,0.3155]
[1736841725552,3.14645,3178.2,3177.7,0.3155]
[1736841726228,3.14627,3178.4,3177.5,0.3155]
[1736841726432,3.14627,3178.4,3177.9,0.3155]
[1736841727663,3.14671,3178.0,3177.5,1.1088]
[1736841727836,3.96566435,3178.1,3178.0,0.14036942]
[1736841728037,0.81913435,3178.1,3177.5,1.1088]
[1736841728260,3.14666,3178.0,3177.5,1.1088]
[1736841728823,0.7798,3178.1,3177.5,1.1088]
[1736841729166,3.14648,3178.2,3177.9,0.3155]
[1736841729465,3.18561088,3178.4,3177.9,0.3155]
[1736841729820,3.14634,3178.3,3177.9,0.3155]
[1736841732037,0.7798,3178.6,3177.9,0.3155]
[1736841732038,3.14624,3178.4,3177.9,0.3155]
[1736841732922,0.7798,3178.8,3178.0,1.1088]
[1736841733266,3.14596,3178.7,3178.2,0.3155]
[1736841733967,3.81912578,3179.0,3178.5,0.3155]
[1736841734130,3.14603,3178.6,3178.5,0.3155]
[1736841735064,3.14603,3178.6,3178.2,0.3155]
[1736841735465,3.14613,3178.5,3178.4,0.3155]
[1736841735652,3.92593,3178.5,3178.4,0.3155]
[1736841735964,3.14653,3178.1,3177.6,0.7933]
[1736841736141,0.03933437,3178.1,3177.6,0.7933]
[1736841736327,0.03933437,3178.1,3177.7,0.14000628]
[1736841736727,3.14681,3177.9,3177.8,0.3155]
[1736841737152,3.14681,3177.9,3177.7,0.3155]
[1736841737570,3.14681,3177.9,3177.8,0.45558512]
[1736841738065,3.14681,3177.9,3177.8,0.3155]
[1736841738867,0.03933437,3178.1,3177.7,0.3155]
[1736841739044,3.14681,3177.9,3177.7,0.3155]
[1736841739244,3.14681,3177.9,3177.8,0.45558512]
[1736841739649,3.14681,3177.9,3177.8,0.3155]
[1736841740264,3.14681,3177.9,3177.7,0.3155]
[1736841740656,3.14681,3177.9,3177.8,0.45564315]
[1736841741078,3.14681,3177.9,3177.8,0.3155]
[1736841741743,3.14681,3177.9,3177.7,0.3155]
[1736841742065,3.18616464,3177.8,3177.7,0.3155]
[1736841742642,3.14683,3177.8,3177.7,0.3155]
[1736841742863,3.14683,3177.8,3177.7,0.455712]
[1736841744655,3.14666,3178.0,3177.7,0.455712]
[1736841745984,3.14666,3178.0,3177.9,0.3155]
[1736841746876,3.14666,3178.0,3177.7,0.3155]
[1736841747271,3.14675,3177.9,3177.8,0.45578554]
[1736841747688,3.14675,3177.9,3177.8,0.3155]
[1736841748062,3.14657,3178.1,3177.8,0.3155]
[1736841748267,3.14641,3178.3,3177.7,0.3155]
[1736841748464,3.14641,3178.3,3178.0,0.3155]
[1736841748692,3.14624,3178.4,3178.2,0.3155]
[1736841749085,3.14624,3178.4,3178.3,0.45544133]
[1736841749383,3.14624,3178.4,3178.3,0.3155]
[1736841750188,3.14624,3178.4,3178.2,0.3155]
[1736841750376,3.14624,3178.4,3178.3,0.45544133]
[1736841750584,3.14624,3178.4,3178.3,0.3155]
[1736841751493,3.14634,3178.3,3177.9,0.3155]
[1736841751873,3.14634,3178.3,3177.8,0.8073]
[1736841751874,3.14643,3178.2,3178.1,0.3155]
[1736841752259,3.14643,3178.2,3178.1,0.45540493]
[1736841754658,3.18561051,3178.4,3178.1,0.45540493]
[1736841754864,3.1461,3178.6,3178.3,0.3155]
[1736841755096,0.8195,3179.0,3178.3,0.3155]
[1736841755295,0.03932569,3178.9,3178.5,0.3155]
[1736841755664,0.03932569,3178.9,3178.6,0.45510825]
[1736841756198,3.14595,3178.7,3178.6,0.3155]
[1736841756761,0.03932569,3178.9,3178.3,0.3155]
[1736841756991,3.14611,3178.6,3178.5,0.3155]
[1736841757193,3.96561,3178.6,3178.2,0.3155]
[1736841757400,0.8195,3178.2,3177.5,0.8073]
[1736841757695,3.14633,3178.3,3177.5,0.8073]
[1736841757902,3.14637,3178.3,3177.7,2.13985859]
[1736841758191,3.14671,3178.0,3177.7,0.13985859]
[1736841758399,3.18606438,3177.9,3177.8,0.61025662]
[1736841758581,3.18606438,3177.9,3177.8,0.75004636]
[1736841759559,3.18606438,3177.9,3177.8,0.45528974]
[1736841759794,3.58662082,3177.9,3177.8,0.45528974]
[1736841759997,6.60653743,3177.9,3177.8,0.13978974]
[1736841760297,3.14725,3177.4,3177.2,1.0962]
[1736841760666,3.14725,3177.4,3177.3,0.45563406]
[1736841760867,3.14713,3177.5,3177.3,0.45563406]
[1736841761201,0.03934119,3177.7,3177.3,0.45563406]
[1736841761202,3.18629119,3177.7,3177.3,0.45563406]
[1736841761395,3.14695,3177.7,3177.3,0.45563406]
[1736841761609,3.14704,3177.6,3177.3,0.45563406]
[1736841761899,3.18637903,3177.6,3177.3,0.45563406]
[1736841762707,3.14704,3177.6,3177.3,0.45563406]
[1736841763204,3.14714,3177.5,3177.3,0.45563406]
[1736841763574,3.1865595,3177.4,3177.3,0.3155]
[1736841763761,3.14734,3177.3,3177.1,0.3155]
[1736841764779,3.14771,3177.0,3176.7,1.0962]
[1736841764962,3.14775,3176.9,3176.7,0.3155]
[1736841765163,0.8011,3177.0,3176.7,0.3155]
[1736841765382,3.14782,3176.8,3176.7,0.3155]
[1736841765787,3.14792,3176.7,3176.6,0.3155]
[1736841766460,6.16783661,3176.7,3176.6,0.3155]
[1736841766665,6.78855497,3176.7,3176.6,0.3155]
[1736841766897,3.14826,3176.4,3176.1,0.3155]
[1736841767763,3.14831,3176.3,3176.1,0.3155]
[1736841769067,3.14772,3176.9,3176.1,0.3155]
[1736841769277,3.14795,3176.7,3176.1,0.3155]
[1736841769707,0.0393521,3176.6,3176.1,0.3155]
[1736841770206,3.14795,3176.7,3176.1,0.3155]
[1736841771226,3.94854,3177.2,3176.4,0.7807]
[1736841771367,3.14776,3176.9,3176.4,0.7807]
[1736841772870,3.14776,3176.9,3176.5,0.13751865]
[1736841773071,3.14776,3176.9,3176.4,0.7807]
[1736841773072,3.1476,3177.1,3176.4,0.7807]
[1736841773583,3.1867779,3177.2,3176.5,0.13751865]
[1736841774811,3.14743,3177.2,3176.6,0.7807]
[1736841774984,3.14743,3177.2,3176.7,0.13738083]
[1736841777604,3.18666525,3177.4,3176.8,2.0]
[1736841777785,3.18666525,3177.4,3176.9,0.13715858]
[1736841778978,3.18666525,3177.4,3177.0,0.3155]
[1736841779180,3.18666525,3177.4,3177.1,0.1370208]
[1736841780214,3.18666525,3177.4,3176.9,0.3155]
[1736841780512,3.18666525,3177.4,3177.0,0.13708969]
[1736841781215,0.8243,3177.9,3177.1,0.7766]
[1736841781412,3.14689,3177.8,3177.2,2.13695192]
[1736841781711,3.0,3178.1,3177.3,0.7766]
[1736841781910,3.14649,3178.2,3177.5,0.3155]
[1736841782118,3.18559365,3178.4,3177.7,2.0]
[1736841782430,3.14626,3178.4,3177.8,0.13619564]
[1736841782809,3.18559071,3178.4,3177.8,0.13619564]
[1736841783144,0.8243,3178.5,3177.8,0.13619564]
[1736841783281,0.03932873,3178.5,3177.8,0.13619564]
[1736841784308,0.03932874,3178.6,3177.8,0.13619564]
[1736841784693,3.14616,3178.5,3177.8,0.13619564]
[1736841786997,3.14624,3178.4,3177.8,0.13619564]
[1736841788883,3.14618,3178.5,3177.9,0.7766]
[1736841789083,3.14618,3178.5,3178.0,0.13571498]
[1736841789440,3.14624,3178.4,3178.0,0.13571498]
[1736841789644,3.14634,3178.3,3178.0,0.13571498]
[1736841791271,0.03932874,3178.6,3178.0,0.13571498]
[1736841791576,3.14619,3178.5,3178.0,0.13571498]
[1736841791722,0.03932831,3178.4,3178.0,0.13571498]
[1736841792072,3.01991661,3178.5,3178.0,0.13571498]
[1736841792277,0.03932933,3178.4,3178.0,0.13571498]
[1736841792722,3.14617,3178.5,3178.0,0.13571498]
[1736841793424,3.14624,3178.4,3178.0,0.13571498]
[1736841794060,3.14624,3178.4,3178.1,0.3155]
[1736841794222,3.14624,3178.4,3178.1,0.45114614]
[1736841800883,0.03932931,3178.6,3178.1,0.45114614]
[1736841801084,3.14612,3178.6,3178.1,0.45114614]
[1736841802301,0.2488,3178.4,3178.1,0.45114614]
[1736841803001,0.2488,3178.4,3178.2,1.0775]
[1736841803391,0.2488,3178.4,3178.3,0.13509693]
[1736841804297,0.2488,3178.4,3178.3,0.45059693]
[1736841805867,0.2488,3178.4,3178.3,1.21259693]
[1736841817615,0.2488,3178.4,3178.3,0.45059693]
[1736841818915,3.39503,3178.4,3178.3,0.45059693]
[1736841819083,3.548856,3178.4,3178.3,0.45059693]
[1736841821324,3.9037416,3178.4,3178.3,0.13509693]
[1736841821615,3.1466,3178.1,3177.8,0.3155]
[1736841822815,0.402626,3178.4,3177.9,1.1064]
[1736841823031,0.402626,3178.4,3178.1,2.3155]
[1736841823804,0.402626,3178.4,3178.2,0.7909]
[1736841823991,0.402626,3178.4,3178.2,3.75685886]
[1736841824195,0.402626,3178.4,3178.3,11.42972381]
[1736841824790,0.402626,3178.4,3178.3,21.16097042]
[1736841825202,0.402626,3178.4,3178.3,21.45596928]
[1736841831454,3.95138,3179.5,3179.1,0.3155]
[1736841831613,3.14525,3179.4,3179.1,0.3155]
[1736841832628,3.14525,3179.4,3179.2,0.13329644]
[1736841832941,3.14525,3179.4,3179.3,0.3155]
[1736841833140,3.14525,3179.4,3179.2,0.13329644]
[1736841833141,3.95154,3179.3,3179.2,0.13329644]
[1736841833323,3.14554,3179.1,3179.0,0.3155]
[1736841833700,3.95154,3179.3,3178.7,0.3155]
[1736841833927,3.14566,3179.0,3178.7,0.61006623]
[1736841835051,3.14566,3179.0,3178.7,0.3155]
[1736841836028,3.14566,3179.0,3178.6,0.3155]
[1736841836203,0.8062,3179.3,3178.8,1.1064]
[1736841836532,3.14534,3179.4,3178.8,1.1064]
[1736841836733,0.8062,3179.5,3179.1,0.3155]
[1736841836942,3.95142,3179.5,3179.1,0.3155]
[1736841838662,3.14522,3179.5,3179.1,0.3155]
[1736841839148,0.03931566,3179.8,3179.3,0.3155]
[1736841839350,3.14483,3179.9,3179.3,0.3155]
[1736841839523,3.14483,3179.9,3179.5,0.3155]
[1736841840224,3.94274,3179.6,3179.5,0.3155]
[1736841840644,3.14525,3179.4,3179.1,0.3155]
[1736841841775,3.14535,3179.3,3179.1,0.3155]
[1736841841935,3.9823557,3179.3,3179.2,0.3155]
[1736841843255,0.8370157,3179.3,3179.0,0.3155]
[1736841843459,3.14546,3179.2,3179.0,0.3155]
[1736841843751,0.03931822,3179.2,3179.0,0.3155]
[1736841843952,6.16545661,3179.1,3179.0,0.3155]
[1736841844122,7.58363409,3179.1,3179.0,0.3155]
[1736841844321,3.94364,3178.7,3178.6,0.3155]
[1736841844739,3.14603,3178.6,3178.5,0.3155]
[1736841844943,3.1853579,3178.6,3178.5,0.3155]
[1736841845120,3.14613,3178.5,3178.4,0.59939489]
[1736841845776,6.16604661,3178.5,3178.4,0.59939489]
[1736841845955,7.58428406,3178.5,3178.4,0.59939489]
[1736841846557,3.94383,3178.5,3178.4,0.59939489]
[1736841846863,3.14579,3178.9,3178.4,0.91489489]
[1736841847486,0.7977,3179.0,3178.6,0.3155]
[1736841847636,3.94337,3179.0,3178.6,0.3155]
[1736841847838,3.94337,3179.0,3178.8,0.3155]
[1736841848069,3.94337,3179.0,3178.9,0.13346075]
[1736841848381,3.01991661,3179.4,3179.0,0.3155]
[1736841848382,3.14529,3179.4,3179.0,0.3155]
[1736841848674,3.14529,3179.4,3178.9,5.16279945]
[1736841848675,3.14529,3179.4,3179.2,0.3155]
[1736841849034,3.14529,3179.4,3179.3,0.13318556]
[1736841849262,3.14529,3179.4,3179.2,0.3155]
[1736841849468,3.14529,3179.4,3179.3,0.13299576]
[1736841849767,3.14529,3179.4,3179.0,0.3155]
[1736841849968,3.14529,3179.4,3179.3,0.13299576]
[1736841850163,3.94277,3179.6,3179.0,1.1103]
[1736841850383,3.1449,3179.8,3179.3,0.44849576]
[1736841850550,3.1449,3179.8,3179.3,0.3155]
[1736841850746,3.14506,3179.6,3179.4,0.13292697]
[1736841851061,0.7977,3179.9,3179.3,0.3155]
[1736841851062,3.14514,3179.5,3179.3,0.3155]
[1736841851240,3.14524,3179.4,3179.1,0.3155]
[1736841851440,3.14524,3179.4,3179.2,0.13306455]
[1736841851676,3.14524,3179.4,3179.3,0.3155]
[1736841852655,3.14524,3179.4,3179.1,0.3155]
[1736841852976,3.14524,3179.4,3179.3,0.3155]
[1736841853340,0.7977,3179.3,3178.9,5.3448387]
[1736841853545,3.14549,3179.2,3178.9,5.3448387]
[1736841853777,3.14549,3179.2,3179.0,0.44870214]
[1736841854273,3.14554,3179.1,3179.0,3.47804084]
[1736841860050,3.14554,3179.1,3179.0,0.44870214]
[1736841866292,3.14539,3179.3,3179.0,0.44870214]
[1736841866492,3.14528,3179.4,3179.0,1.27910214]
[1736841866701,0.85021785,3179.6,3179.0,1.27910214]
[1736841866874,3.14535,3179.3,3179.0,1.27910214]
[1736841867596,3.95644,3179.1,3179.0,0.44870214]
[1736841867812,6.97635661,3179.1,3179.0,0.13320214]
[1736841868358,3.14584,3178.8,3178.5,0.3155]
[1736841868603,6.97635661,3179.1,3179.0,0.1330651]
[1736841868912,3.14592,3178.8,3178.5,0.3155]
[1736841869613,3.14597,3178.7,3178.5,0.3155]
[1736841870422,3.14579,3178.9,3178.5,0.3155]
[1736841870710,3.14588,3178.8,3178.5,0.3155]
[1736841871090,3.14568,3179.0,3178.5,0.3155]
[1736841871393,3.1455,3179.2,3178.9,0.3155]
[1736841872107,0.8114,3179.6,3178.9,3.3448387]
[1736841872261,3.14535,3179.3,3178.9,3.3448387]
[1736841873162,3.14523,3179.5,3178.9,3.3448387]
[1736841873361,3.14524,3179.4,3178.9,3.3448387]
[1736841873594,3.1451,3179.6,3178.9,3.3448387]
[1736841873811,3.1451,3179.6,3179.3,0.3155]
[1736841873979,3.14522,3179.5,3179.3,0.3155]
[1736841876578,3.145,3179.7,3179.3,0.3155]
[1736841877703,3.145,3179.7,3179.5,0.3155]
[1736841878005,3.01991661,3180.1,3179.5,3.3448387]
[1736841878006,3.14461,3180.1,3179.5,3.3448387]
[1736841878307,3.14466,3180.0,3179.7,0.3155]
[1736841878669,3.14466,3180.0,3179.6,0.92929927]
[1736841878670,3.14466,3180.0,3179.8,0.44766172]
[1736841878971,3.95568,3180.4,3179.8,0.44766172]
[1736841878972,3.95568,3180.4,3179.8,0.13216172]
[1736841879168,4.58657212,3180.6,3179.9,2.3155]
[1736841879387,3.14438,3180.3,3179.9,2.3155]
[1736841879725,3.14438,3180.3,3180.0,0.13190302]
[1736841880602,3.14438,3180.3,3180.1,0.8141]
[1736841880908,3.14438,3180.3,3180.2,0.13176552]
[1736841881469,0.8114,3180.6,3180.2,0.13176552]
[1736841881669,3.14421,3180.5,3180.2,0.13176552]
[1736841881904,3.18351416,3180.5,3180.2,0.13176552]
[1736841882216,3.14421,3180.5,3180.2,0.13176552]
[1736841884510,3.144,3180.7,3180.2,0.13176552]
[1736841884687,3.144,3180.7,3180.2,0.44726552]
[1736841884892,3.144,3180.7,3180.3,2.0]
[1736841885088,3.144,3180.7,3180.3,2.13169677]
[1736841885287,0.79380087,3180.9,3180.3,2.13169677]
[1736841885909,3.14416,3180.5,3180.3,2.13169677]
[1736841886825,3.14425,3180.4,3180.3,0.13169677]
[1736841887179,0.03930375,3180.7,3180.2,0.3155]
[1736841887415,3.14425,3180.4,3180.3,0.13143868]
[1736841887813,3.14425,3180.4,3180.2,0.3155]
[1736841888019,3.14425,3180.4,3180.3,0.13083292]
[1736841888396,3.14425,3180.4,3180.2,0.3155]
[1736841888605,3.14425,3180.4,3180.3,0.13083292]
[1736841888919,3.14425,3180.4,3180.2,0.3155]
[1736841889219,3.14425,3180.4,3180.3,0.44633292]
[1736841894777,3.92045,3180.4,3180.3,0.44633292]
[1736841895821,3.14425,3180.4,3180.3,0.44633292]
[1736841896938,3.14409,3180.6,3180.3,1.21233292]
[1736841897546,3.14418,3180.5,3180.3,1.21233292]
[1736841900454,3.14407,3180.6,3180.3,1.21233292]
[1736841902460,3.14417,3180.5,3180.3,1.21233292]
[1736841904067,3.92002,3180.9,3180.3,1.21233292]
[1736841904367,3.14402,3180.7,3180.3,1.0815]
[1736841904837,3.14402,3180.7,3180.5,0.3155]
[1736841905231,3.14402,3180.7,3180.6,0.44618989]
[1736841905621,0.7605,3181.1,3180.6,0.44618989]
[1736841905977,0.63401175,3181.5,3180.8,0.3155]
[1736841906182,3.14334,3181.4,3181.2,0.3155]
[1736841906477,3.14312,3181.6,3181.2,0.3155]
[1736841906779,3.14312,3181.6,3181.4,0.3155]
[1736841907075,3.18246035,3181.5,3181.4,0.3155]